bitfinex/quotes_BTCUSD_20251007
["timestamp","ask_amount","ask_price","bid_price","bid_amount"]
[1759866951043,5.00115011,121840.0,121830.0,0.00409334]
[1759866951248,2.51551311,121840.0,121830.0,0.00409334]
[1759866951444,5.01864311,121840.0,121830.0,0.00409334]
[1759866951653,5.01859311,121840.0,121830.0,0.00409334]
[1759866951862,4.73976011,121840.0,121830.0,0.00409334]
[1759866952048,5.00116011,121840.0,121830.0,0.00409334]
[1759866952257,5.01853511,121840.0,121830.0,0.00409334]
[1759866952427,2.51551311,121840.0,121830.0,0.00409334]
[1759866952645,4.96310911,121840.0,121830.0,0.00409334]
[1759866952845,5.13512111,121840.0,121830.0,0.00409334]
[1759866953050,5.20905911,121840.0,121830.0,0.00409334]
[1759866953235,2.97015211,121840.0,121830.0,0.00409334]
[1759866953429,2.51551311,121840.0,121830.0,0.00409334]
[1759866953628,4.00115211,121840.0,121830.0,0.00409334]
[1759866953859,2.51551311,121840.0,121830.0,0.00409334]
[1759866954438,4.20036911,121840.0,121830.0,0.00409334]
[1759866954641,2.51551311,121840.0,121830.0,0.00409334]
[1759866955013,4.30708211,121840.0,121830.0,0.00409334]
[1759866955214,4.30332211,121840.0,121830.0,0.00409334]
[1759866955417,2.51551311,121840.0,121830.0,0.00409334]
[1759866955668,4.33025211,121840.0,121830.0,0.00409334]
[1759866956026,2.51551311,121840.0,121830.0,0.00409334]
[1759866956231,4.39910411,121840.0,121830.0,0.00409334]
[1759866956434,2.51551311,121840.0,121830.0,0.00409334]
[1759866956697,4.34604411,121840.0,121830.0,0.00409334]
[1759866956915,4.31070711,121840.0,121830.0,0.00409334]
[1759866957101,2.51551311,121840.0,121830.0,0.00409334]
[1759866957313,3.99190711,121840.0,121830.0,0.00409334]
[1759866957512,4.27651711,121840.0,121830.0,0.00409334]
[1759866957721,2.51551311,121840.0,121830.0,0.00409334]
[1759866957952,4.31070511,121840.0,121830.0,0.00409334]
[1759866958121,2.51551311,121840.0,121830.0,0.00409334]
[1759866958357,4.35105611,121840.0,121830.0,0.00409334]
[1759866958593,4.35481611,121840.0,121830.0,0.00409334]
[1759866959045,2.19295311,121840.0,121830.0,0.00409334]
[1759866959285,3.50918211,121840.0,121830.0,0.00409334]
[1759866959531,3.45030811,121840.0,121830.0,0.00409334]
[1759866959737,3.44940811,121840.0,121830.0,0.00409334]
[1759866959906,3.44941811,121840.0,121830.0,0.00409334]
[1759866960113,3.55993211,121840.0,121830.0,0.00409334]
[1759866960345,3.63071711,121840.0,121830.0,0.00409334]
[1759866960482,3.85580611,121840.0,121830.0,0.00409334]
[1759866960676,4.67768311,121840.0,121830.0,0.00409334]
[1759866960886,4.67093311,121840.0,121830.0,0.00409334]
[1759866961088,2.51551311,121840.0,121830.0,0.00409334]
[1759866961289,4.54632311,121840.0,121830.0,0.00409334]
[1759866961485,4.52250811,121840.0,121830.0,0.00409334]
[1759866961689,2.51551311,121840.0,121830.0,0.00409334]
[1759866961892,4.30006311,121840.0,121830.0,0.00409334]
[1759866962134,4.31649311,121840.0,121830.0,0.00409334]
[1759866962337,4.33604511,121840.0,121830.0,0.00409334]
[1759866962662,3.12340711,121840.0,121830.0,0.00409334]
[1759866962861,2.51551311,121840.0,121830.0,0.00409334]
[1759866963061,3.76667111,121840.0,121830.0,0.00409334]
[1759866963263,2.51551311,121840.0,121830.0,0.00409334]
[1759866963468,3.81656111,121840.0,121830.0,0.00409334]
[1759866963674,1.44425947,121840.0,121830.0,0.00409334]
[1759866963855,0.73715341,121840.0,121830.0,0.01957334]
[1759866964054,1.94636517,121840.0,121830.0,0.04606334]
[1759866964262,1.22205826,121840.0,121830.0,0.04606334]
[1759866964454,0.89303558,121840.0,121830.0,0.11686334]
[1759866964719,1.37906146,121840.0,121830.0,0.11686334]
[1759866965466,0.4070097,121840.0,121830.0,0.11686334]
[1759866965666,1.37906146,121840.0,121830.0,0.11686334]
[1759866965870,1.22189826,121840.0,121830.0,0.11686334]
[1759866966065,1.45901826,121840.0,121830.0,0.11686334]
[1759866966486,1.45901826,121840.0,121830.0,0.07748334]
[1759866966678,1.45901826,121840.0,121830.0,0.11686334]
[1759866967090,1.37902146,121840.0,121830.0,0.11686334]
[1759866967488,1.37902146,121840.0,121830.0,0.13279334]
[1759866967691,1.37902146,121840.0,121830.0,0.04606334]
[1759866970035,1.37902146,121840.0,121830.0,0.00409334]
[1759866970036,0.4069697,121840.0,121830.0,0.00409334]
[1759866970249,1.37902146,121840.0,121830.0,0.00409334]
[1759866972968,3.50748114,121840.0,121830.0,0.00409334]
[1759866973184,2.99246314,121840.0,121830.0,0.00409334]
[1759866973434,2.03029026,121840.0,121830.0,0.00409334]
[1759866973879,1.97679026,121840.0,121830.0,0.00409334]
[1759866974494,1.73967026,121840.0,121830.0,0.00409334]
[1759866974702,2.06211026,121840.0,121830.0,0.00409334]
[1759866975073,1.78518036,121840.0,121830.0,0.00409334]
[1759866975276,1.28496836,121840.0,121830.0,0.00409334]
[1759866975483,1.75503736,121840.0,121830.0,0.00409334]
[1759866975883,2.09503736,121840.0,121830.0,0.00409334]
[1759866979223,1.48190146,121840.0,121830.0,0.02891334]
[1759866979425,1.46430146,121840.0,121830.0,0.04517334]
[1759866979627,1.46430146,121840.0,121830.0,0.08344334]
[1759866979844,0.0057,121840.0,121830.0,0.11363334]
[1759866980016,0.4068897,121840.0,121830.0,0.29255651]
[1759866980219,0.89291558,121840.0,121830.0,0.29255651]
[1759866980590,0.89091558,121840.0,121830.0,0.29255651]
[1759866981001,0.89091558,121840.0,121830.0,0.29355651]
[1759866982113,0.4048897,121840.0,121830.0,0.29355651]
[1759866982340,0.4048497,121840.0,121830.0,0.37667857]
[1759866982756,0.89087558,121840.0,121830.0,0.37667857]
[1759866984480,0.4048497,121840.0,121830.0,0.37667857]
[1759866984684,0.65387558,121840.0,121830.0,0.37667857]
[1759866984929,0.89087558,121840.0,121830.0,0.37667857]
[1759866988825,0.65387558,121840.0,121830.0,0.37667857]
[1759866989055,0.4048097,121840.0,121830.0,0.37667857]
[1759866989268,0.89083558,121840.0,121830.0,0.37667857]
[1759866991367,0.4048097,121840.0,121830.0,0.37667857]
[1759866991571,0.4048097,121840.0,121830.0,0.86270445]
[1759866993479,0.4048097,121840.0,121830.0,0.37667857]
[1759866993961,1.45685826,121840.0,121830.0,0.00509334]
[1759866994758,1.21989826,121840.0,121830.0,0.00409334]
[1759866994936,1.54217826,121840.0,121830.0,0.00509334]
[1759866995345,0.5701265,121840.0,121830.0,0.00509334]
[1759866995525,1.46218146,121840.0,121830.0,0.00409334]
[1759866995726,1.14090146,121840.0,121830.0,0.00409334]
[1759866995934,1.46314146,121840.0,121830.0,0.00409334]
[1759866996449,1.14090146,121840.0,121830.0,0.00409334]
[1759866996670,1.46314146,121840.0,121830.0,0.00409334]
[1759866996872,1.54313826,121840.0,121830.0,0.00409334]
[1759866999773,2.73759726,121840.0,121830.0,0.00409334]
[1759867000038,3.07759726,121840.0,121830.0,0.00409334]
[1759867001417,2.99733026,121840.0,121830.0,0.00409334]
[1759867001657,3.3733332,121840.0,121830.0,0.00409334]
[1759867001896,5.6512052,121840.0,121830.0,0.00409334]
[1759867002118,4.8677222,121840.0,121830.0,0.00409334]
[1759867002336,2.4522862,121840.0,121830.0,0.00409334]
[1759867002561,5.2826342,121840.0,121830.0,0.00409334]
[1759867002789,5.3973072,121840.0,121830.0,0.00409334]
[1759867003015,5.3239092,121840.0,121830.0,0.00409334]
[1759867003232,2.51300533,121840.0,121830.0,0.00409334]
[1759867003562,2.52836912,121840.0,121830.0,0.00409334]
[1759867003760,3.45749948,121840.0,121830.0,0.00409334]
[1759867003970,2.97465124,121840.0,121830.0,0.00409334]
[1759867004183,3.31485424,121840.0,121830.0,0.00409334]
[1759867004494,3.33217524,121840.0,121830.0,0.00409334]
[1759867004704,2.04334324,121840.0,121830.0,0.00409334]
[1759867004901,3.57729924,121840.0,121830.0,0.00409334]
[1759867005092,2.04334324,121840.0,121830.0,0.00409334]
[1759867005347,3.84217124,121840.0,121830.0,0.00409334]
[1759867005553,2.04334324,121840.0,121830.0,0.00409334]
[1759867005733,2.61999648,121840.0,121830.0,0.00409334]
[1759867005952,2.68764124,121840.0,121830.0,0.00409334]
[1759867006160,2.02793945,121840.0,121830.0,0.00409334]
[1759867006359,3.09364245,121840.0,121830.0,0.00409334]
[1759867006607,3.61217745,121840.0,121830.0,0.00409334]
[1759867006809,3.60176845,121840.0,121830.0,0.00409334]
[1759867007148,3.62653645,121840.0,121830.0,0.00409334]
[1759867007549,2.02793945,121840.0,121830.0,0.00409334]
[1759867007750,3.37804145,121840.0,121830.0,0.00409334]
[1759867007938,3.37714145,121840.0,121830.0,0.00409334]
[1759867008140,2.76470845,121840.0,121830.0,0.00409334]
[1759867008369,3.43357445,121840.0,121830.0,0.00409334]
[1759867008577,3.18192045,121840.0,121830.0,0.00409334]
[1759867008723,3.11112045,121840.0,121830.0,0.00409334]
[1759867008939,3.11059145,121840.0,121830.0,0.00409334]
[1759867009135,0.65592883,121840.0,121830.0,0.04381334]
[1759867009346,1.03856745,121840.0,121830.0,0.04381334]
[1759867009766,1.37856745,121840.0,121830.0,0.01917334]
[1759867009988,1.05636745,121840.0,121830.0,0.00409334]
[1759867010492,1.37856745,121840.0,121830.0,0.00409334]
[1759867010898,1.40197191,121840.0,121830.0,0.00409334]
[1759867011265,0.91617329,121840.0,121830.0,0.00409334]
[1759867011486,1.40197191,121840.0,121830.0,0.00409334]
[1759867011697,1.07977191,121840.0,121830.0,0.00409334]
[1759867011898,1.40193191,121840.0,121830.0,0.00409334]
[1759867012907,1.07977191,121840.0,121830.0,0.00409334]
[1759867013127,0.89272883,121840.0,121830.0,0.04381334]
[1759867013328,1.37852745,121840.0,121830.0,0.00409334]
[1759867014641,1.37852745,121840.0,121830.0,0.01917334]
[1759867014851,1.37852745,121840.0,121830.0,0.00409334]
[1759867015464,1.37852745,121840.0,121830.0,0.01917334]
[1759867016111,1.37852745,121840.0,121830.0,0.00409334]
[1759867016688,1.40901691,121840.0,121830.0,0.00409334]
[1759867023778,1.37852745,121840.0,121830.0,0.00409334]
[1759867023973,0.89272883,121840.0,121830.0,0.04381334]
[1759867024274,1.37852745,121840.0,121830.0,0.00409334]
[1759867024521,1.29308745,121840.0,121830.0,0.00409334]
[1759867024751,1.37844745,121840.0,121830.0,0.00409334]
[1759867025185,2.50741225,121840.0,121830.0,0.00409334]
[1759867025835,2.59053431,121840.0,121830.0,0.00409334]
[1759867027337,3.07633293,121840.0,121830.0,0.00409334]
[1759867027544,2.59053431,121840.0,121830.0,0.00409334]
[1759867030456,4.32010343,121840.0,121830.0,0.00409334]
[1759867030664,5.01006643,121840.0,121830.0,0.00409334]
[1759867030868,5.82727048,121840.0,121830.0,1e-08]
[1759867031621,6.08347048,121840.0,121830.0,1e-08]
[1759867031825,5.65150848,121840.0,121830.0,1e-08]
[1759867032256,5.11394748,121840.0,121830.0,1e-08]
[1759867032478,1.19905036,121840.0,121830.0,1e-08]
[1759867032800,1.99147648,121840.0,121830.0,1e-08]
[1759867033026,1.72338609,121840.0,121830.0,1e-08]
[1759867033230,1.28427092,121840.0,121830.0,1e-08]
[1759867033425,1.59090151,121840.0,121830.0,1e-08]
[1759867034451,1.26890151,121840.0,121830.0,1e-08]
[1759867034663,1.59090151,121840.0,121830.0,1e-08]
[1759867034911,1.66289831,121840.0,121830.0,1e-08]
[1759867035086,1.71214831,121840.0,121830.0,1e-08]
[1759867035300,1.66289831,121840.0,121830.0,1e-08]
[1759867036035,1.66293831,121840.0,121830.0,1e-08]
[1759867038232,1.57749831,121840.0,121830.0,1e-08]
[1759867038433,1.66289831,121840.0,121830.0,1e-08]
[1759867039972,1.57749831,121840.0,121830.0,1e-08]
[1759867040176,1.66289831,121840.0,121830.0,1e-08]
[1759867040508,1.47521317,121840.0,121830.0,1e-08]
[1759867040714,1.63936287,121840.0,121830.0,1e-08]
[1759867040939,2.12516149,121840.0,121830.0,1e-08]
[1759867042942,2.14053399,121840.0,121830.0,1e-08]
[1759867043516,2.13853399,121840.0,121830.0,1e-08]
[1759867043717,2.16968589,121840.0,121830.0,1e-08]
[1759867043945,2.26968587,121840.0,121830.0,1e-08]
[1759867044186,2.35162237,121840.0,121830.0,1e-08]
[1759867044645,2.35062237,121840.0,121830.0,1e-08]
[1759867045056,2.35262237,121840.0,121830.0,1e-08]
[1759867045257,2.69418237,121840.0,121830.0,1e-08]
[1759867045480,2.59418239,121840.0,121830.0,1e-08]
[1759867045672,1.85922049,121840.0,121830.0,1e-08]
[1759867045889,1.57729537,121840.0,121830.0,1e-08]
[1759867046094,0.76687745,121840.0,121830.0,1e-08]
[1759867046301,1.02079201,121840.0,121830.0,1e-08]
[1759867046494,1.36079201,121840.0,121830.0,1e-08]
[1759867046717,1.36379201,121840.0,121830.0,1e-08]
[1759867047144,3.12142269,121840.0,121830.0,1e-08]
[1759867047502,2.93315569,121840.0,121830.0,1e-08]
[1759867048133,2.44735707,121840.0,121830.0,1e-08]
[1759867048342,2.47041303,121840.0,121830.0,1e-08]
[1759867048737,2.94852633,121840.0,121830.0,1e-08]
[1759867048934,3.02852313,121840.0,121830.0,1e-08]
[1759867049135,3.01315249,121840.0,121830.0,1e-08]
[1759867050841,3.03620944,121840.0,121830.0,1e-08]
[1759867051440,3.02820944,121840.0,121830.0,1e-08]
[1759867052474,3.03190944,121840.0,121830.0,1e-08]
[1759867052979,2.0603122,121840.0,121830.0,1e-08]
[1759867053267,2.64307444,121840.0,121830.0,1e-08]
[1759867053488,1.6714772,121840.0,121830.0,1e-08]
[1759867053748,2.06774364,121840.0,121830.0,1e-08]
[1759867053961,1.79729802,121840.0,121830.0,1e-08]
[1759867054606,2.28309664,121840.0,121830.0,1e-08]
[1759867055015,2.27541099,121840.0,121830.0,1e-08]
[1759867055245,2.36309605,121840.0,121830.0,1e-08]
[1759867056247,2.12657605,121840.0,121830.0,1e-08]
[1759867056465,2.37105605,121840.0,121830.0,1e-08]
[1759867058006,2.16602266,121840.0,121830.0,1e-08]
[1759867058216,2.33017236,121840.0,121830.0,1e-08]
[1759867059195,2.00829236,121840.0,121830.0,1e-08]
[1759867059432,2.3224841,121840.0,121830.0,1e-08]
[1759867060517,2.3717341,121840.0,121830.0,1e-08]
[1759867060788,2.3716941,121840.0,121830.0,1e-08]
[1759867061439,2.43445033,121840.0,121830.0,1e-08]
[1759867061668,2.44213994,121840.0,121830.0,1e-08]
[1759867063237,2.43413994,121840.0,121830.0,1e-08]
[1759867066456,2.43414988,121840.0,121830.0,1e-08]
[1759867068220,2.45987019,121840.0,121830.0,1e-08]
[1759867069321,2.94631588,121840.0,121830.0,1e-08]
[1759867071895,4.55951068,121840.0,121830.0,1e-08]
[1759867072330,4.58417146,121840.0,121830.0,1e-08]
[1759867075111,4.57617146,121840.0,121830.0,1e-08]
[1759867075869,4.93416146,121840.0,121830.0,1e-08]
[1759867076832,4.84872146,121840.0,121830.0,1e-08]
[1759867077059,4.93112146,121840.0,121830.0,1e-08]
[1759867077240,4.93412146,121840.0,121830.0,1e-08]
[1759867077671,4.93112146,121840.0,121830.0,1e-08]
[1759867078089,4.93512146,121840.0,121830.0,1e-08]
[1759867080170,4.94312146,121840.0,121830.0,1e-08]
[1759867080399,4.96850507,121840.0,121830.0,1e-08]
[1759867080622,0.16424406,121770.0,121760.0,0.07364588]
[1759867080843,0.97197837,121770.0,121760.0,0.09977588]
[1759867081065,0.97197837,121770.0,121760.0,0.04148]
[1759867081970,0.97197837,121770.0,121760.0,0.0416311]
[1759867083057,0.97197837,121770.0,121760.0,0.0426311]
[1759867083296,0.97193837,121770.0,121760.0,0.0426311]
[1759867083527,1.05193517,121770.0,121760.0,0.0426311]
[1759867083786,1.05193517,121770.0,121760.0,0.0015511]
[1759867083979,0.56592086,121770.0,121760.0,0.0015511]
[1759867084205,0.72025517,121770.0,121760.0,0.0015511]
[1759867084433,1.04193517,121770.0,121760.0,0.0426311]
[1759867084861,0.96193837,121770.0,121760.0,0.0426311]
[1759867085028,0.15424406,121770.0,121760.0,0.0426311]
[1759867085281,0.16424406,121770.0,121760.0,1.34335933]
[1759867085459,0.40052406,121770.0,121760.0,0.85734502]
[1759867085665,0.40052406,121770.0,121760.0,0.20707316]
[1759867085862,0.40052406,121770.0,121760.0,0.69308747]
[1759867086477,0.40052406,121770.0,121760.0,0.69667237]
[1759867087083,2.53234968,121770.0,121760.0,0.005136]
[1759867087315,1.79567474,121770.0,121760.0,0.005136]
[1759867087553,2.65352095,121770.0,121760.0,0.005136]
[1759867087749,4.58366564,121770.0,121760.0,0.005136]
[1759867087974,4.64129464,121770.0,121760.0,0.005136]
[1759867088187,4.30483744,121770.0,121760.0,0.005136]
[1759867088407,4.33197344,121770.0,121760.0,0.005136]
[1759867088634,4.48137444,121770.0,121760.0,0.005136]
[1759867088883,4.72607244,121770.0,121760.0,0.004136]
[1759867089120,4.47929537,121770.0,121760.0,0.004136]
[1759867089337,2.26284037,121770.0,121760.0,0.004136]
[1759867089562,2.87316447,121770.0,121760.0,0.004136]
[1759867089791,4.10949547,121770.0,121760.0,0.004136]
[1759867090012,4.17567847,121770.0,121760.0,0.004136]
[1759867090222,3.61635155,121760.0,121750.0,0.0001]
[1759867090453,4.0478673,121760.0,121750.0,0.0001]
[1759867090664,3.9296305,121760.0,121750.0,0.0001]
[1759867090872,1.7961915,121760.0,121750.0,0.0001]
[1759867091073,3.9296305,121760.0,121750.0,0.0001]
[1759867091279,3.55402581,121760.0,121750.0,0.0001]
[1759867091497,0.82416288,121760.0,121750.0,0.0001]
[1759867091713,2.8136813,121760.0,121750.0,0.0001]
[1759867091925,2.8611363,121760.0,121750.0,0.0001]
[1759867092131,1.7971915,121760.0,121750.0,0.0001]
[1759867092353,2.8562905,121760.0,121750.0,0.0001]
[1759867092563,3.6238895,121760.0,121750.0,0.0001]
[1759867092773,2.4356505,121760.0,121750.0,0.0001]
[1759867093006,2.6668255,121760.0,121750.0,0.0001]
[1759867093224,2.7468233,121760.0,121750.0,0.0001]
[1759867093435,2.73989501,121760.0,121750.0,0.0001]
[1759867093877,2.80295501,121760.0,121750.0,0.0001]
[1759867094090,1.89249501,121760.0,121750.0,0.0001]
[1759867094337,0.68418639,121760.0,121750.0,0.0001]
[1759867094557,2.0966393,121760.0,121750.0,0.0001]
[1759867094991,0.82203762,121760.0,121750.0,0.0001]
[1759867095245,1.31345513,121760.0,121750.0,0.0001]
[1759867095691,1.31345513,121760.0,121750.0,0.01522]
[1759867095907,1.79946944,121760.0,121750.0,0.00061232]
[1759867097212,3.85571759,121760.0,121750.0,0.00061232]
[1759867097397,2.89083059,121760.0,121750.0,0.00061232]
[1759867097538,3.02130639,121760.0,121750.0,0.00061232]
[1759867097792,2.91565139,121760.0,121750.0,0.00061232]
[1759867098145,3.09208339,121760.0,121750.0,0.00061232]
[1759867098351,1.97789239,121760.0,121750.0,0.00061232]
[1759867098617,3.22208939,121760.0,121750.0,0.00061232]
[1759867098823,3.15476639,121760.0,121750.0,0.00061232]
[1759867099034,1.97789239,121760.0,121750.0,0.00061232]
[1759867099220,3.21495639,121760.0,121750.0,0.00061232]
[1759867099451,3.09458939,121760.0,121750.0,0.00061232]
[1759867099642,2.90398339,121760.0,121750.0,0.00061232]
[1759867099885,3.18375439,121760.0,121750.0,0.00061232]
[1759867100067,3.04330839,121760.0,121750.0,0.00061232]
[1759867100314,2.98598339,121760.0,121750.0,0.00061232]
[1759867100537,4.7986567,121760.0,121750.0,0.00061232]
[1759867100749,5.6984886,121760.0,121750.0,0.00061232]
[1759867100929,5.6418656,121760.0,121750.0,0.00061232]
[1759867101346,5.7239616,121760.0,121750.0,0.00061232]
[1759867101599,0.16431153,121720.0,121710.0,0.05253]
[1759867101834,0.43341369,121720.0,121710.0,0.03866]
[1759867102051,0.16430296,121730.0,121710.0,0.85445061]
[1759867102202,0.23624,121720.0,121710.0,0.27303633]
[1759867102428,0.23624,121720.0,121710.0,0.3310263]
[1759867102630,0.23624,121720.0,121710.0,0.3340263]
[1759867102806,0.23674296,121720.0,121710.0,0.3714363]
[1759867103010,0.00050296,121720.0,121710.0,0.3714363]
[1759867103433,0.00050296,121720.0,121710.0,1.60985682]
[1759867104637,0.00050296,121720.0,121710.0,0.6378282]
[1759867104837,0.00050296,121720.0,121710.0,1.60985682]
[1759867105244,0.00050296,121720.0,121710.0,1.12384251]
[1759867105933,0.00050296,121720.0,121710.0,0.20711206]
[1759867106147,0.00050296,121720.0,121710.0,0.8574514]
[1759867106359,0.00050296,121720.0,121710.0,0.37143709]
[1759867106506,0.00050296,121720.0,121710.0,0.8574514]
[1759867106668,0.16481449,121720.0,121710.0,0.8574514]
[1759867107113,0.00050296,121720.0,121710.0,0.36843709]
[1759867107319,0.00050296,121720.0,121710.0,0.37043709]
[1759867108320,0.16481449,121720.0,121710.0,0.37043709]
[1759867108879,0.18401792,121720.0,121710.0,0.37248712]
[1759867110064,0.18401792,121720.0,121710.0,0.20816209]
[1759867110283,0.18401792,121720.0,121710.0,0.37248712]
[1759867112410,0.18401792,121720.0,121710.0,0.20816209]
[1759867112755,0.18401792,121720.0,121710.0,0.37248712]
[1759867113207,0.18401792,121720.0,121710.0,0.20816209]
[1759867113426,0.18771792,121720.0,121710.0,0.20816209]
[1759867113825,0.18771792,121720.0,121710.0,0.17075209]
[1759867114508,0.18771792,121720.0,121710.0,0.20816209]
[1759867116351,0.20309898,121720.0,121710.0,0.20816209]
[1759867117396,0.18389555,121720.0,121710.0,0.20816209]
[1759867118426,0.42009555,121720.0,121710.0,0.37248712]
[1759867118634,0.42009555,121720.0,121710.0,0.20816209]
[1759867119864,0.42009555,121720.0,121710.0,0.37248712]
[1759867120079,0.42877522,121720.0,121710.0,0.925404]
[1759867120292,0.00420296,121720.0,121710.0,0.925404]
[1759867120686,0.00420296,121720.0,121710.0,1.161564]
[1759867122782,0.00420296,121720.0,121710.0,1.21985988]
[1759867125004,0.00420296,121720.0,121710.0,1.21785988]
[1759867125811,0.00420296,121720.0,121710.0,1.22085988]
[1759867126242,0.00420296,121720.0,121710.0,1.162564]
[1759867126455,0.00420296,121720.0,121710.0,1.23527046]
[1759867127025,0.00420296,121720.0,121710.0,1.65508546]
[1759867128283,0.00420296,121720.0,121710.0,0.60960712]
[1759867128492,0.00420296,121720.0,121710.0,1.64119904]
[1759867129371,0.00420296,121720.0,121710.0,1.1548331]
[1759867129705,0.00420296,121720.0,121710.0,0.43234716]
[1759867129915,0.00420296,121720.0,121710.0,1.1548331]
[1759867131115,0.00420296,121720.0,121710.0,1.15498861]
[1759867134481,0.00420296,121720.0,121710.0,1.15494861]
[1759867135308,0.00420296,121720.0,121710.0,0.43234716]
[1759867135533,0.00420296,121720.0,121710.0,1.15494861]
[1759867137904,0.00420296,121720.0,121710.0,0.43234716]
[1759867138203,0.00420296,121720.0,121710.0,1.15490861]
[1759867138409,0.00420296,121720.0,121710.0,0.91886861]
[1759867138658,0.00420296,121720.0,121710.0,1.15490861]
[1759867139280,0.00420296,121720.0,121710.0,0.91886861]
[1759867140197,0.16851449,121720.0,121710.0,0.43234716]
[1759867140840,0.40455449,121720.0,121710.0,0.26802213]
[1759867141277,0.89107594,121720.0,121710.0,0.11765007]
[1759867141505,0.89107594,121720.0,121710.0,0.00205003]
[1759867141506,1.57080994,121720.0,121710.0,0.00205003]
[1759867141736,2.27456535,121720.0,121710.0,0.00205003]
[1759867141951,1.9440587,121720.0,121710.0,0.00405003]
[1759867142191,1.8210447,121720.0,121710.0,0.00405003]
[1759867143275,2.30756615,121720.0,121710.0,0.00205003]
[1759867143546,2.30856615,121720.0,121710.0,0.00205003]
[1759867143762,1.8220447,121720.0,121710.0,0.00205003]
[1759867143995,1.7365647,121720.0,121710.0,0.00205003]
[1759867144222,1.8220047,121720.0,121710.0,0.00205003]
[1759867144901,1.8220447,121720.0,121710.0,0.00205003]
[1759867145371,1.5005647,121720.0,121710.0,0.00205003]
[1759867145593,1.8220047,121720.0,121710.0,0.00205003]
[1759867147078,1.5005647,121720.0,121710.0,0.00205003]
[1759867147279,1.7410647,121720.0,121710.0,0.00205003]
[1759867147567,1.8265047,121720.0,121710.0,0.00205003]
[1759867147780,2.31302615,121720.0,121710.0,0.00205003]
[1759867147990,1.8265047,121720.0,121710.0,0.00205003]
[1759867148413,1.33998325,121720.0,121710.0,0.00205003]
[1759867148621,1.8265047,121720.0,121710.0,0.00205003]
[1759867149268,2.31302615,121720.0,121710.0,0.00205003]
[1759867150064,1.8265047,121720.0,121710.0,0.00205003]
[1759867150309,1.5050647,121720.0,121710.0,0.00205003]
[1759867150434,1.33998325,121720.0,121710.0,0.00205003]
[1759867150628,1.4250679,121720.0,121710.0,0.00205003]
[1759867150857,1.7465079,121720.0,121710.0,0.00205003]
[1759867151350,0.59945449,121720.0,121710.0,0.04103003]
[1759867151546,1.00053594,121720.0,121710.0,0.04103003]
[1759867151766,1.32197594,121720.0,121710.0,0.00205003]
[1759867151980,0.83545449,121720.0,121710.0,0.00205003]
[1759867152204,0.83545449,121720.0,121710.0,0.04103003]
[1759867152205,1.00053594,121720.0,121710.0,0.04103003]
[1759867152443,1.32197594,121720.0,121710.0,0.09304003]
[1759867152878,1.32197594,121720.0,121710.0,0.04103003]
[1759867153279,0.51401449,121720.0,121710.0,0.10808003]
[1759867153493,0.83445449,121720.0,121710.0,0.12296003]
[1759867153931,0.51301449,121720.0,121710.0,0.12296003]
[1759867154146,0.25845449,121720.0,121710.0,0.12296003]
[1759867154352,0.25845449,121720.0,121710.0,0.77380651]
[1759867154568,0.17301449,121720.0,121710.0,0.37040712]
[1759867154769,0.40901449,121720.0,121710.0,0.37040712]
[1759867155204,0.40901449,121720.0,121710.0,0.20608209]
[1759867155409,0.24470296,121720.0,121710.0,0.37040712]
[1759867155607,0.40901449,121720.0,121710.0,0.37040712]
[1759867155895,0.47488981,121720.0,121710.0,0.37040712]
[1759867156316,0.31057828,121720.0,121710.0,0.37040712]
[1759867156520,0.47488981,121720.0,121710.0,0.37040712]
[1759867156736,0.40901449,121720.0,121710.0,0.37040712]
[1759867157560,0.33010296,121720.0,121710.0,0.37040712]
[1759867157985,0.49441449,121720.0,121710.0,0.85692857]
[1759867158201,0.00870296,121720.0,121710.0,0.85692857]
[1759867158408,0.24466296,121720.0,121710.0,0.85692857]
[1759867158713,0.00870296,121720.0,121710.0,0.85692857]
[1759867158931,0.19770296,121720.0,121710.0,1.34345002]
[1759867159146,0.19770296,121720.0,121710.0,0.85692857]
[1759867159367,0.00870296,121720.0,121710.0,0.37040712]
[1759867159592,0.00870296,121720.0,121710.0,1.68345002]
[1759867159802,0.00870296,121720.0,121710.0,1.97827006]
[1759867160013,0.00870296,121720.0,121710.0,1.98127006]
[1759867160654,0.00870296,121720.0,121710.0,1.97827006]
[1759867161681,0.00870296,121720.0,121710.0,2.01142196]
[1759867162313,0.00870296,121720.0,121710.0,2.49494341]
[1759867162525,0.00870296,121720.0,121710.0,2.5249434]
[1759867162738,0.00870296,121720.0,121710.0,2.12382195]
[1759867163575,0.00870296,121720.0,121710.0,1.80246195]
[1759867163823,0.00870296,121720.0,121710.0,2.13766837]
[1759867164008,0.00870296,121720.0,121710.0,2.05222837]
[1759867164164,0.00870296,121720.0,121710.0,2.13766837]
[1759867164516,0.00870296,121720.0,121710.0,2.11358533]
[1759867164717,0.00870296,121720.0,121710.0,2.19902533]
[1759867165381,0.00870296,121720.0,121710.0,1.74360191]
[1759867165594,0.00870296,121720.0,121710.0,2.03992192]
[1759867165953,0.00870296,121720.0,121710.0,1.95448192]
[1759867166627,0.00870296,121720.0,121710.0,2.01302574]
[1759867167072,0.00870296,121720.0,121710.0,1.77714574]
[1759867167263,0.00870296,121720.0,121710.0,2.01302574]
[1759867168302,0.00870296,121720.0,121710.0,1.74699384]
[1759867168519,0.00870296,121720.0,121710.0,0.37540712]
[1759867168782,0.00870296,121720.0,121710.0,1.09780857]
[1759867168999,0.00870296,121720.0,121710.0,0.86192857]
[1759867169435,0.00870296,121720.0,121710.0,0.85692857]
[1759867169647,0.00870296,121720.0,121710.0,0.86192857]
[1759867169868,0.00870296,121720.0,121710.0,0.37540712]
[1759867170096,0.01370296,121720.0,121710.0,0.86192857]
[1759867170299,0.01370296,121720.0,121710.0,0.37540712]
[1759867170478,0.01370296,121720.0,121710.0,0.86192857]
[1759867170828,0.17801449,121720.0,121710.0,0.37040712]
[1759867171298,0.41385449,121720.0,121710.0,0.37240712]
[1759867171429,0.41385449,121720.0,121710.0,0.85892857]
[1759867171852,0.41385449,121720.0,121710.0,0.37240712]
[1759867172081,0.90037594,121720.0,121710.0,0.04303003]
[1759867172316,0.25801129,121720.0,121710.0,0.00405003]
[1759867172472,0.49929449,121720.0,121710.0,0.00405003]
[1759867172703,0.98581594,121720.0,121710.0,0.00405003]
[1759867172921,1.57860994,121720.0,121710.0,0.00405003]
[1759867173146,1.57360994,121720.0,121710.0,0.00405003]
[1759867173323,0.40885449,121720.0,121710.0,0.00405003]
[1759867173526,0.57929129,121720.0,121710.0,0.00405003]
[1759867173903,0.57929129,121720.0,121710.0,0.01842003]
[1759867174081,1.06581274,121720.0,121710.0,0.00205003]
[1759867174282,0.57929129,121720.0,121710.0,0.00405003]
[1759867174619,1.06581274,121720.0,121710.0,0.00405003]
[1759867174789,1.06581274,121720.0,121710.0,0.00205003]
[1759867175166,1.06581274,121720.0,121710.0,0.00305003]
[1759867175167,2.67749374,121720.0,121710.0,0.00305003]
[1759867175625,2.7907677,121720.0,121710.0,0.00305003]